[Event "POL-chT 2 Liga 2019"]
[Site "Poronin"]
[Date "2019.09.15"]
[Round "9.14"]
[White "Lizak, Jakub"]
[Black "Mickiewicz, Piotr"]
[Result "0-1"]
[ECO "A01"]
[WhiteElo "2236"]
[BlackElo "2226"]
[Annotator "NA"]
[PlyCount "94"]
[EventDate "2019.09.07"]
[EventType "team-tourn"]
[EventCountry "POL"]
[SourceTitle "playchess.com"]
[Source "ChessBase"]
[SourceQuality "1"]
[TimeControl "40/5400+30:1800+30"]

1. b3 {[%emt 0:00:00]} e5 {[%emt 0:02:46]} 2. Bb2 {[%emt 0:00:00]} Nc6 {[%emt 0:02:16]} 3. e3 {[%emt 0:00:00]} d5 {[%emt 0:01:33]} 4. Bb5 {[%emt 0:00:01]} Bd6 {[%emt 0:00:23]} 5. f4 {[%emt 0:02:23]} Qh4+ {[%emt 0:00:29]} (5... Qe7 6. Nf3 f6 7. fxe5 fxe5 8. Bxc6+ bxc6 9. Nxe5 Nf6 10. Nxc6 Qf7 11. O-O O-O 12. Bxf6 gxf6 13. Nc3 Kh8 14. Qf3 {1-0 (24) Nakamura,H (2777)-Hou,Y (2658) chess.com INT 2018}) 6. g3 {[%emt 0:00:07] A01: Nimzowitsch-Larsen Opening} Qe7 {[%emt 0:00:08]} 7. Qe2 {[%emt 0:03:53]} Nf6 {[%emt 0:07:49]} 8. Nf3 {[%emt 0:04:06]} Bg4 {[%emt 0:07:59]} 9. h3 {[%emt 0:08:48]} Bxf3 {[%emt 0:00:15]} 10. Qxf3 {[%emt 0:00:06]} O-O {[%emt 0:03:26]} 11. Bxc6 {[%emt 0:02:46]} bxc6 {[%emt 0:00:09]} 12. O-O {[%emt 0:01:33]} Rae8 $146 {[%emt 0:16:32]} ({Predecessor:} 12... e4 13. Qg2 Nd7 14. Nc3 f5 15. Kh2 Nc5 16. Rg1 Ne6 17. Qe2 g6 {½-½ (30) Westermeyer,A-Lynch,K Maputo 1996}) 13. Nc3 {[%emt 0:02:00]} d4 {[%emt 0:05:56]} 14. fxe5 {[%emt 0:10:39]} Bxe5 {[%emt 0:02:50]} 15. exd4 $1 {[%emt 0:00:29]} Bxd4+ {[%emt 0:00:44]} 16. Kg2 {[%emt 0:00:23]} c5 {[%emt 0:11:42]} 17. Rad1 {[%emt 0:06:12]} Qe5 {[%emt 0:07:37]} 18. Ba3 {[%emt 0:04:15]} Re6 {[%emt 0:05:38]} 19. Qd3 {[%emt 0:01:50]} Bxc3 {[%emt 0:02:30]} 20. dxc3 {[%emt 0:00:14]} Ne4 {[%emt 0:00:31]} 21. Rde1 {[%emt 0:00:23]} f5 {[%emt 0:00:26]} 22. Bc1 Rfe8 {[%emt 0:05:17]} 23. Rf3 {[%emt 0:00:51]} c6 {[%emt 0:02:56]} 24. Qa6 {[%emt 0:01:36]} Rg6 {[%emt 0:02:49]} 25. Bf4 {[%emt 0:00:21]} Qd5 {[%emt 0:00:37]} 26. Qxa7 {[%emt 0:06:18]} h5 {[%emt 0:00:13]} 27. Rd3 {[%emt 0:02:34]} Qe6 {[%emt 0:00:33]} 28. Rd6 {[%emt 0:06:44]} Nxd6 {[%emt 0:01:05]} 29. Rxe6 {[%emt 0:00:14]} Rexe6 {[%emt 0:00:21]} 30. Qxc5 $18 {[%emt 0:01:54]} Ne4 {[%emt 0:01:11]} 31. Qc4 {[%emt 0:03:12]} h4 {[%emt 0:01:22]} 32. a4 {[%emt 0:05:10]} Nxg3 {[%emt 0:01:42]} 33. a5 {[%emt 0:00:48]} Kh7 {[%emt 0:03:22]} 34. Bb8 {[%emt 0:03:01]} Ne4+ {[%emt 0:00:50]} 35. Kh2 {[%emt 0:00:30]} c5 {[%emt 0:00:41]} 36. b4 {[%emt 0:01:15]} cxb4 {[%emt 0:00:03]} 37. cxb4 {[%emt 0:00:21]} Rc6 {[%emt 0:00:16]} 38. Qe2 {[%emt 0:02:47]} Ng3 {[%emt 0:00:28]} 39. Qd1 {[%emt 0:04:52]} Rce6 {[%emt 0:01:06]} 40. Bxg3 {[%emt 0:00:00]} hxg3+ {[%emt 0:00:00]} 41. Kg1 {[%emt 0:07:24]} g2 {[%emt 0:06:21]} 42. b5 {[%emt 0:01:58]} f4 {[%emt 0:00:23]} 43. a6 {[%emt 0:06:51]} f3 {[%emt 0:00:33]} 44. Kf2 {[%emt 0:02:20]} Rgf6 {[%emt 0:02:42]} 45. a7 {[%emt 0:06:54]} Re2+ {[%emt 0:00:38]} 46. Kg3 {[%emt 0:00:08]} f2 {[%emt 0:00:19]} 47. Qd3+ {[%emt 0:01:02]} Kh6 {[%emt 0:00:21]} 0-1

[Event "POL-chT 2 Liga 2019"]
[Site "Poronin"]
[Date "2019.09.15"]
[Round "9.16"]
[White "Gola, Karol"]
[Black "Maciaga, Marcin"]
[Result "1-0"]
[ECO "B38"]
[WhiteElo "2203"]
[BlackElo "2118"]
[Annotator "NA"]
[PlyCount "170"]
[EventDate "2019.09.07"]
[EventType "team-tourn"]
[EventCountry "POL"]
[SourceTitle "playchess.com"]
[Source "ChessBase"]
[SourceQuality "1"]
[TimeControl "40/5400+30:1800+30"]

1. e4 {[%emt 0:00:00]} c5 {[%emt 0:00:26]} 2. Nf3 {[%emt 0:00:00]} g6 {[%emt 0:00:06]} 3. c4 {[%emt 0:03:15]} Bg7 {[%emt 0:00:18]} 4. d4 {[%emt 0:00:09]} cxd4 {[%emt 0:08:34]} 5. Nxd4 {[%emt 0:00:05]} Nc6 {[%emt 0:00:21]} 6. Be3 {[%emt 0:00:56]} Nf6 {[%emt 0:00:24]} 7. Nc3 {[%emt 0:00:11]} O-O {[%emt 0:00:12]} 8. Be2 {[%emt 0:08:28]} d6 {[%emt 0:00:10]} 9. h3 {[%emt 0:02:57]} Bd7 {[%emt 0:00:40]} 10. O-O {[%emt 0:00:39]} Nxd4 {[%emt 0:00:15]} 11. Bxd4 {[%emt 0:03:02]} Bc6 {[%emt 0:00:04]} 12. Bd3 {[%emt 0:09:47]} a5 {[%emt 0:00:59]} 13. b3 {[%emt 0:04:47]} Nd7 {[%emt 0:02:34]} 14. Bxg7 {[%emt 0:02:22]} Kxg7 {[%emt 0:00:04]} 15. Qd2 {[%emt 0:12:16]} Nc5 {[%emt 0:00:51]} 16. Rfe1 {[%emt 0:10:38]} e5 {[%emt 0:02:44]} 17. Bc2 {[%emt 0:09:56]} Qe7 {[%emt 0:04:32]} 18. a3 {[%emt 0:10:32]} b6 {[%emt 0:10:40]} 19. Re3 {[%emt 0:06:04]} Kh8 {[%emt 0:06:33]} 20. Rd1 {[%emt 0:00:24]} Rad8 {[%emt 0:00:36]} 21. b4 {[%emt 0:01:29]} axb4 {[%emt 0:00:38]} 22. axb4 {[%emt 0:00:04]} Ne6 {[%emt 0:00:14]} 23. Ne2 {[%emt 0:05:38]} Rd7 {[%emt 0:09:42]} 24. f3 {[%emt 0:02:16]} b5 {[%emt 0:08:13]} 25. Bb3 {[%emt 0:00:26]} f5 {[%emt 0:08:31]} 26. exf5 {[%emt 0:00:45]} Ng5 {[%emt 0:09:09]} 27. cxb5 {[%emt 0:02:16]} Bxf3 {[%emt 0:02:38]} 28. gxf3 {[%emt 0:01:22]} Nxh3+ {[%emt 0:08:53]} 29. Kf1 {[%emt 0:00:04]} Rxf5 {[%emt 0:02:41]} 30. Ng1 {[%emt 0:00:20]} Nf4 {[%emt 0:02:55]} 31. Re4 {[%emt 0:02:10]} d5 {[%emt 0:01:03]} 32. b6 {[%emt 0:01:10]} Qg5 {[%emt 0:01:57]} 33. Qf2 {[%emt 0:01:09]} Qd8 {[%emt 0:02:23]} 34. Ree1 {[%emt 0:00:36]} d4 {[%emt 0:02:00]} 35. Qc2 {[%emt 0:00:40]} Qxb6 {[%emt 0:01:27]} 36. Qc4 {[%emt 0:00:20]} Qd8 {[%emt 0:00:43]} 37. Ra1 {[%emt 0:00:43]} Kg7 {[%emt 0:00:37]} 38. Qc6 {[%emt 0:00:31]} Rc7 {[%emt 0:00:34]} 39. Qe4 {[%emt 0:00:09]} Qg5 {[%emt 0:00:36]} 40. Ra2 {[%emt 0:00:00]} h5 {[%emt 0:00:00]} 41. Rc2 {[%emt 0:09:23]} Rxc2 {[%emt 0:06:36]} 42. Qxc2 {[%emt 0:00:05]} h4 {[%emt 0:03:26]} 43. Qh2 {[%emt 0:16:36]} h3 {[%emt 0:05:02]} 44. b5 {[%emt 0:04:05]} Qh4 {[%emt 0:01:40]} 45. b6 {[%emt 0:00:31]} Rg5 {[%emt 0:01:33]} 46. b7 {[%emt 0:00:39]} Rxg1+ {[%emt 0:01:19]} 47. Qxg1 {[%emt 0:00:12]} h2 {[%emt 0:00:23]} 48. Qh1 {[%emt 0:00:29]} Nd3 {[%emt 0:03:33]} 49. Ke2 {[%emt 0:00:03]} Qxe1+ {[%emt 0:07:16]} 50. Qxe1 {[%emt 0:00:03]} Nxe1 {[%emt 0:00:12]} 51. b8=Q {[%emt 0:00:05]} h1=Q {[%emt 0:01:54]} 52. Qg8+ {[%emt 0:00:03]} Kf6 {[%emt 0:00:13]} 53. Qe6+ {[%emt 0:00:07]} Kg7 {[%emt 0:01:36]} 54. Qg8+ {[%emt 0:00:06]} Kf6 {[%emt 0:00:08]} 55. Qe6+ {[%emt 0:00:03]} Kg7 {[%emt 0:00:06]} 56. Qxe5+ {[%emt 0:01:13]} Kh7 {[%emt 0:00:36]} 57. Qe7+ {[%emt 0:00:22]} Kh6 {[%emt 0:00:16]} 58. Qf8+ {[%emt 0:00:05]} Kg5 {[%emt 0:00:17]} 59. Qe7+ {[%emt 0:00:53]} Kh6 {[%emt 0:00:26]} 60. Qf8+ {[%emt 0:00:05]} Kg5 {[%emt 0:00:06]} 61. Qd8+ {[%emt 0:00:19]} Kf5 62. Qd5+ {[%emt 0:00:17]} Kf6 {[%emt 0:02:15]} 63. Qxd4+ {[%emt 0:00:03]} Kf5 {[%emt 0:01:37]} 64. Qc5+ {[%emt 0:00:14]} Kf6 {[%emt 0:01:34]} 65. Qc3+ {[%emt 0:00:23]} Kf5 {[%emt 0:00:52]} 66. Qxe1 {[%emt 0:00:12]} Qh2+ {[%emt 0:00:26]} 67. Kd1 {[%emt 0:02:03]} Qd6+ {[%emt 0:00:29]} 68. Qd2 {[%emt 0:00:04]} Qb6 {[%emt 0:01:46]} 69. Bc2+ {[%emt 0:00:30]} Kf6 {[%emt 0:01:10]} 70. Qc3+ {[%emt 0:00:02]} Kg5 {[%emt 0:00:27]} 71. Qe5+ {[%emt 0:00:27]} Kh6 {[%emt 0:01:11]} 72. f4 {[%emt 0:01:47]} Qg1+ {[%emt 0:00:31]} 73. Kd2 {[%emt 0:00:03]} Qg2+ {[%emt 0:00:27]} 74. Kc3 {[%emt 0:01:21]} Qc6+ {[%emt 0:00:14]} 75. Kd4 {[%emt 0:00:29]} Qb6+ {[%emt 0:00:32]} 76. Ke4 {[%emt 0:00:25]} Qb7+ {[%emt 0:00:58]} 77. Ke3 {[%emt 0:00:12]} Kh7 {[%emt 0:00:39]} 78. Qh5+ {[%emt 0:00:27]} Kg8 {[%emt 0:00:34]} 79. Qxg6+ {[%emt 0:00:02]} Kf8 {[%emt 0:00:30]} 80. Qh6+ {[%emt 0:01:09]} Kg8 {[%emt 0:00:33]} 81. Qh7+ {[%emt 0:00:29]} Qxh7 {[%emt 0:00:11]} 82. Bxh7+ {[%emt 0:00:04]} Kxh7 {[%emt 0:00:06]} 83. Ke4 {[%emt 0:00:02]} Kg7 {[%emt 0:00:26]} 84. Ke5 {[%emt 0:00:04]} Kf7 {[%emt 0:00:20]} 85. Ke4 Ke6 1-0

[Event "POL-chT 2 Liga 2019"]
[Site "Poronin"]
[Date "2019.09.15"]
[Round "9.17"]
[White "Krasiewicz, Robert"]
[Black "Kalmuk, Krzysztof"]
[Result "0-1"]
[ECO "A15"]
[WhiteElo "2044"]
[BlackElo "1999"]
[Annotator "NA"]
[PlyCount "66"]
[EventDate "2019.09.07"]
[EventType "team-tourn"]
[EventCountry "POL"]
[SourceTitle "playchess.com"]
[Source "ChessBase"]
[SourceQuality "1"]
[TimeControl "40/5400+30:1800+30"]

1. c4 {[%emt 0:00:54]} Nf6 {[%emt 0:01:02]} 2. g3 {[%emt 0:00:24]} e6 {[%emt 0:00:33]} 3. Bg2 {[%emt 0:00:12]} d5 {[%emt 0:00:08]} 4. Nf3 {[%emt 0:00:02]} c5 {[%emt 0:03:41]} 5. O-O {[%emt 0:00:16]} Nc6 {[%emt 0:00:16]} 6. b3 {[%emt 0:02:14]} Be7 {[%emt 0:00:27]} 7. e3 {[%emt 0:00:41]} O-O {[%emt 0:01:27]} 8. Re1 {[%emt 0:03:09]} e5 {[%emt 0:12:28]} 9. cxd5 {[%emt 0:17:00]} Nxd5 {[%emt 0:00:08]} 10. Bb2 {[%emt 0:00:19]} Ndb4 {[%emt 0:15:29]} 11. Re2 {[%emt 0:02:05]} Nd3 {[%emt 0:04:22]} 12. Bc3 {[%emt 0:00:32]} e4 {[%emt 0:16:24]} 13. Ne1 {[%emt 0:00:20]} Bg4 {[%emt 0:00:16]} 14. f3 {[%emt 0:03:55]} exf3 {[%emt 0:00:19]} 15. Bxf3 {[%emt 0:01:03]} Bxf3 {[%emt 0:00:39]} 16. Nxf3 {[%emt 0:00:02]} Qd5 {[%emt 0:01:58]} 17. Qf1 {[%emt 0:01:06]} b5 {[%emt 0:00:53]} 18. e4 {[%emt 0:05:13]} Qd7 {[%emt 0:00:17]} 19. Re3 {[%emt 0:00:33]} Rad8 {[%emt 0:00:50]} 20. Ne1 {[%emt 0:01:42]} Nxe1 {[%emt 0:07:14]} 21. Rxe1 {[%emt 0:00:37]} b4 {[%emt 0:00:08]} 22. Bb2 {[%emt 0:00:51]} Nd4 {[%emt 0:00:51]} 23. Qd3 {[%emt 0:01:27]} Bf6 {[%emt 0:02:38]} 24. e5 {[%emt 0:00:25]} Rfe8 {[%emt 0:00:31]} 25. Bxd4 {[%emt 0:00:22]} Bxe5 {[%emt 0:01:51]} 26. Re4 {[%emt 0:05:42]} Bxd4+ {[%emt 0:00:17]} 27. Rxd4 {[%emt 0:00:02]} cxd4 {[%emt 0:03:25]} 28. a3 {[%emt 0:00:21]} Re1+ {[%emt 0:02:52]} 29. Kf2 {[%emt 0:00:07]} Rde8 {[%emt 0:00:06]} 30. axb4 {[%emt 0:00:43]} Qg4 {[%emt 0:01:23]} 31. Nc3 {[%emt 0:05:17]} Rxa1 {[%emt 0:00:08]} 32. Nd5 {[%emt 0:00:02]} Rae1 {[%emt 0:01:07]} 33. Nf4 {[%emt 0:00:03]} R1e4 {[%emt 0:00:14]} 0-1

[Event "POL-chT 2 Liga 2019"]
[Site "Poronin"]
[Date "2019.09.15"]
[Round "9.18"]
[White "Szydlowska-Duda, Marta"]
[Black "Andrzejewska, Anna"]
[Result "1-0"]
[ECO "A43"]
[WhiteElo "1986"]
[BlackElo "2021"]
[Annotator "NA"]
[PlyCount "77"]
[EventDate "2019.09.07"]
[EventType "team-tourn"]
[EventCountry "POL"]
[SourceTitle "playchess.com"]
[Source "ChessBase"]
[SourceQuality "1"]
[TimeControl "40/5400+30:1800+30"]

1. d4 {[%emt 0:00:00]} Nf6 {[%emt 0:00:15]} 2. Nf3 {[%emt 0:00:00]} c5 {[%emt 0:00:53]} 3. d5 {[%emt 0:01:21]} g6 {[%emt 0:00:35]} 4. Nc3 {[%emt 0:01:43]} d6 {[%emt 0:01:44]} 5. e4 {[%emt 0:03:10]} Bg7 {[%emt 0:00:51]} 6. h3 {[%emt 0:01:04]} O-O {[%emt 0:00:48]} 7. Be2 {[%emt 0:01:41]} Na6 {[%emt 0:11:14]} 8. O-O {[%emt 0:00:43]} Nc7 {[%emt 0:04:29]} 9. a4 {[%emt 0:03:40]} e6 {[%emt 0:05:34]} 10. Bf4 {[%emt 0:14:51]} exd5 {[%emt 0:02:23]} 11. exd5 {[%emt 0:00:09]} b6 {[%emt 0:04:24]} 12. Qd2 {[%emt 0:04:39]} a6 {[%emt 0:02:55]} 13. Ng5 {[%emt 0:17:44]} Bb7 {[%emt 0:15:24]} 14. Bf3 {[%emt 0:07:36]} b5 {[%emt 0:03:58]} 15. Nge4 {[%emt 0:16:12]} b4 {[%emt 0:29:57]} 16. Nxf6+ {[%emt 0:00:43]} Bxf6 {[%emt 0:00:41]} 17. Ne4 {[%emt 0:08:17]} Bxb2 {[%emt 0:01:51]} 18. Nxd6 {[%emt 0:00:41]} Bc8 {[%emt 0:05:06]} 19. Rad1 {[%emt 0:02:40]} Bd7 {[%emt 0:03:11]} 20. Nb7 {[%emt 0:01:38]} Qc8 {[%emt 0:01:26]} 21. Nxc5 {[%emt 0:00:20]} Bc3 {[%emt 0:00:37]} 22. Qc1 {[%emt 0:02:49]} Ra7 {[%emt 0:01:37]} 23. Nxd7 {[%emt 0:04:02]} Qxd7 {[%emt 0:00:12]} 24. Be3 {[%emt 0:00:09]} Rb7 {[%emt 0:01:13]} 25. d6 {[%emt 0:00:08]} Ne6 {[%emt 0:00:20]} 26. Bxb7 {[%emt 0:00:27]} Qxb7 {[%emt 0:00:05]} 27. a5 {[%emt 0:01:33]} Rd8 {[%emt 0:00:48]} 28. Bb6 {[%emt 0:00:40]} Rd7 {[%emt 0:00:07]} 29. Qe3 {[%emt 0:00:55]} Qc6 {[%emt 0:01:06]} 30. Qg3 {[%emt 0:02:29]} f6 {[%emt 0:00:43]} 31. Qf3 {[%emt 0:02:37]} Rxd6 {[%emt 0:00:28]} 32. Rxd6 {[%emt 0:00:21]} Qxd6 {[%emt 0:00:06]} 33. Qa8+ {[%emt 0:00:22]} Kg7 {[%emt 0:00:26]} 34. Qxa6 {[%emt 0:00:09]} Nf4 {[%emt 0:00:53]} 35. Qb7+ {[%emt 0:00:22]} Kh6 {[%emt 0:00:33]} 36. Be3 {[%emt 0:00:21]} g5 {[%emt 0:00:28]} 37. Bxf4 {[%emt 0:00:59]} Qxf4 {[%emt 0:00:17]} 38. a6 {[%emt 0:00:27]} Bd4 {[%emt 0:00:48]} 39. a7 {[%emt 0:00:39]} 1-0

[Event "POL-chT 2 Liga 2019"]
[Site "Poronin"]
[Date "2019.09.15"]
[Round "9.19"]
[White "Stachowiak, Kamil"]
[Black "Psyk, Radoslaw"]
[Result "1-0"]
[ECO "A20"]
[WhiteElo "2444"]
[BlackElo "2314"]
[Annotator "NA"]
[PlyCount "93"]
[EventDate "2019.09.07"]
[EventType "team-tourn"]
[EventCountry "POL"]
[SourceTitle "playchess.com"]
[Source "ChessBase"]
[SourceQuality "1"]
[TimeControl "40/5400+30:1800+30"]

1. c4 {[%emt 0:00:00]} e5 {[%emt 0:01:26]} 2. g3 {[%emt 0:00:00]} d6 {[%emt 0:03:21]} 3. Bg2 {[%emt 0:00:19]} g6 {[%emt 0:00:38]} 4. Nc3 {[%emt 0:04:30]} Bg7 {[%emt 0:00:44]} 5. Nf3 {[%emt 0:04:52]} f5 {[%emt 0:07:57]} 6. d3 {[%emt 0:01:56]} Nf6 {[%emt 0:00:44]} 7. Rb1 {[%emt 0:00:42]} O-O {[%emt 0:11:02]} 8. O-O {[%emt 0:00:48]} h6 {[%emt 0:09:44]} 9. b4 {[%emt 0:01:01]} g5 {[%emt 0:12:17]} 10. b5 {[%emt 0:03:54]} Be6 {[%emt 0:03:58] A21: English Opening: 1...e5 2 Nc3} (10... Kh8 11. Ba3 Nbd7 12. Nd2 a6 13. Qb3 axb5 14. cxb5 Nb6 15. Bb4 Qe8 16. a4 Be6 17. Qc2 Rb8 18. a5 {0-1 (37) Harikrishna,P (2727)-Ponomariov,R (2714) Beijing 2014}) 11. Nd2 {[%emt 0:01:58]} Qc8 {[%emt 0:00:56]} 12. Nd5 $146 {[%emt 0:05:44]} ({Predecessor:} 12. a4 Nbd7 13. Ba3 Rb8 14. a5 b6 15. Na2 Nc5 16. Nb4 Rf7 17. Nc6 Ra8 18. Nb4 {½-½ (44) Sorensen,T (2345)-Jacobsen,B (2290) Aarhus 1989}) 12... Nxd5 {[%emt 0:03:29]} 13. cxd5 {[%emt 0:01:11]} ({Reject} 13. Bxd5 Bxd5 14. cxd5 f4 $15) 13... Bf7 {[%emt 0:00:01]} 14. e3 {[%emt 0:01:57]} Nd7 {[%emt 0:00:52]} 15. Bb2 {[%emt 0:02:34]} Nf6 {[%emt 0:02:06]} 16. Qb3 {[%emt 0:01:54]} f4 {[%emt 0:06:33]} 17. d4 {[%emt 0:12:38]} e4 {[%emt 0:01:56]} 18. Nxe4 {[%emt 0:00:58]} Bg6 {[%emt 0:11:49]} 19. Nxf6+ {[%emt 0:01:03]} Rxf6 {[%emt 0:00:02]} 20. e4 {[%emt 0:00:37]} g4 {[%emt 0:03:11]} 21. Rfe1 {[%emt 0:04:03]} f3 {[%emt 0:03:16]} 22. Bf1 {[%emt 0:00:07]} Rf7 {[%emt 0:00:20]} 23. Bd3 {[%emt 0:17:22]} Qd8 {[%emt 0:01:20]} 24. e5 {[%emt 0:00:59]} Qg5 {[%emt 0:00:05]} 25. Qc2 $16 {[%emt 0:00:45]} Qh5 {[%emt 0:05:14]} 26. h4 {[%emt 0:02:50]} Bxd3 {[%emt 0:00:29]} 27. Qxd3 {[%emt 0:00:02]} Bf8 {[%emt 0:00:33]} 28. Rbc1 {[%emt 0:09:05]} Re8 {[%emt 0:05:08]} 29. Re4 {[%emt 0:02:03]} Rg7 {[%emt 0:03:16]} 30. Rf4 {[%emt 0:05:26]} Rf7 {[%emt 0:01:38]} 31. Qe4 {[%emt 0:02:30]} Rxf4 {[%emt 0:00:20]} 32. Qxf4 {[%emt 0:00:03]} Re7 {[%emt 0:00:14]} 33. exd6 {[%emt 0:00:23]} cxd6 {[%emt 0:00:03]} 34. Rc8 {[%emt 0:02:24]} Rf7 {[%emt 0:00:01]} 35. Qxd6 {[%emt 0:00:59]} Qf5 {[%emt 0:00:19]} 36. Qe6 {[%emt 0:00:21]} Kg7 {[%emt 0:02:25]} 37. Bc1 {[%emt 0:01:15]} Qxe6 {[%emt 0:00:29]} 38. dxe6 {[%emt 0:00:06]} Rf5 {[%emt 0:00:16]} 39. Bf4 {[%emt 0:02:07]} Bb4 {[%emt 0:00:45]} 40. Be5+ {[%emt 0:00:00]} Kg6 {[%emt 0:00:00]} 41. Rg8+ {[%emt 0:07:04]} Kh5 {[%emt 0:00:20]} 42. Rg7 {[%emt 0:05:10]} Rf8 {[%emt 0:04:38]} 43. Rxb7 {[%emt 0:01:31]} Kg6 {[%emt 0:01:56]} 44. Rxa7 {[%emt 0:00:51]} Rc8 {[%emt 0:01:05]} 45. Bc7 {[%emt 0:02:14]} Kf5 {[%emt 0:03:25]} 46. b6 {[%emt 0:00:50]} Re8 {[%emt 0:00:41]} 47. b7 {[%emt 0:00:43]} 1-0

[Event "POL-chT 2 Liga 2019"]
[Site "Poronin"]
[Date "2019.09.15"]
[Round "9.20"]
[White "Zochowski, Kacper"]
[Black "Dobrowolski, Piotr"]
[Result "1/2-1/2"]
[ECO "A09"]
[WhiteElo "2267"]
[BlackElo "2415"]
[Annotator "NA"]
[PlyCount "66"]
[EventDate "2019.09.07"]
[EventType "team-tourn"]
[EventCountry "POL"]
[SourceTitle "playchess.com"]
[Source "ChessBase"]
[SourceQuality "1"]
[TimeControl "40/5400+30:1800+30"]

1. Nf3 {[%emt 0:00:33]} d5 {[%emt 0:00:00]} 2. c4 {[%emt 0:00:05]} d4 {[%emt 0:00:19]} 3. e3 {[%emt 0:05:27]} Nc6 {[%emt 0:00:39]} 4. exd4 {[%emt 0:05:27]} Nxd4 {[%emt 0:00:19]} 5. Nxd4 {[%emt 0:00:48]} Qxd4 {[%emt 0:00:07]} 6. Nc3 {[%emt 0:01:10]} c6 {[%emt 0:11:51]} 7. d3 {[%emt 0:00:23]} Nh6 {[%emt 0:00:07]} 8. Be2 {[%emt 0:06:29]} Nf5 {[%emt 0:07:19]} 9. g4 {[%emt 0:05:31]} Nh4 {[%emt 0:04:23]} 10. O-O {[%emt 0:01:16]} h5 {[%emt 0:02:08]} 11. Be3 {[%emt 0:08:29]} Qd6 {[%emt 0:00:18]} 12. gxh5 {[%emt 0:06:20]} Bh3 {[%emt 0:14:31]} 13. Re1 {[%emt 0:07:41]} Qd7 $17 {[%emt 0:13:19]} 14. Bg5 {[%emt 0:33:21]} Ng2 {[%emt 0:06:40]} 15. Rf1 {[%emt 0:00:05]} Qf5 {[%emt 0:00:23]} 16. Qd2 {[%emt 0:04:05]} f6 {[%emt 0:02:12]} 17. Be3 {[%emt 0:03:56]} Nh4 {[%emt 0:08:22]} 18. f4 {[%emt 0:01:53]} Bxf1 {[%emt 0:03:06]} 19. Rxf1 {[%emt 0:00:08]} Qh3 {[%emt 0:00:33]} 20. Rf2 {[%emt 0:00:36]} Nf5 {[%emt 0:02:11]} 21. Bc5 {[%emt 0:03:10]} e6 {[%emt 0:06:03]} 22. Ne4 {[%emt 0:00:06]} Kf7 {[%emt 0:05:00]} 23. Bf3 {[%emt 0:02:13]} Bxc5 {[%emt 0:01:09]} 24. Nxc5 {[%emt 0:00:01]} Nd4 {[%emt 0:00:51]} 25. Qe3 {[%emt 0:01:32]} Nxf3+ {[%emt 0:04:58]} 26. Rxf3 {[%emt 0:00:00]} Qg4+ {[%emt 0:00:08]} 27. Rg3 {[%emt 0:00:08]} Qd1+ {[%emt 0:00:07]} 28. Kg2 {[%emt 0:00:05]} Qc2+ {[%emt 0:00:21]} 29. Kh1 {[%emt 0:01:11]} Rae8 {[%emt 0:02:00]} 30. Qf3 {[%emt 0:01:49]} Kg8 {[%emt 0:04:15]} 31. Qg4 {[%emt 0:00:18]} Rh7 {[%emt 0:00:45]} 32. Qg6 {[%emt 0:00:28]} Qd1+ {[%emt 0:00:09]} 33. Rg1 {[%emt 0:00:35]} Qxh5 {[%emt 0:00:02]} 1/2-1/2

[Event "POL-chT 2 Liga 2019"]
[Site "Poronin"]
[Date "2019.09.15"]
[Round "9.21"]
[White "Piotrowski, Przemyslaw"]
[Black "Wisniewski, Michal"]
[Result "0-1"]
[ECO "A05"]
[WhiteElo "2293"]
[BlackElo "2130"]
[Annotator "ChessBase"]
[PlyCount "100"]
[EventDate "2019.09.07"]
[EventType "team-tourn"]
[EventCountry "POL"]
[SourceTitle "playchess.com"]
[Source "ChessBase"]
[SourceQuality "1"]
[TimeControl "40/5400+30:1800+30"]

1. Nf3 {[%emt 0:00:00]} Nf6 {[%emt 0:05:54]} 2. c4 {[%emt 0:00:00]} g6 {[%emt 0:00:25]} 3. b3 {[%emt 0:00:00]} Bg7 {[%emt 0:00:23]} 4. Bb2 {[%emt 0:00:00]} O-O {[%emt 0:00:10]} 5. g3 {[%emt 0:00:00]} c6 {[%emt 0:00:21]} 6. Bg2 {[%emt 0:00:18]} d5 {[%emt 0:00:04]} 7. O-O {[%emt 0:00:10]} a5 {[%emt 0:00:41]} 8. d4 {[%emt 0:05:54]} a4 {[%emt 0:01:09]} 9. cxd5 {[%emt 0:03:31]} cxd5 {[%emt 0:00:06]} 10. bxa4 {[%emt 0:02:54]} Nfd7 {[%emt 0:06:46]} 11. Nc3 {[%emt 0:07:31]} Nb6 {[%emt 0:00:12]} 12. Ne5 {[%emt 0:05:46]} Nc6 {[%emt 0:00:48]} 13. Nxc6 {[%emt 0:02:04]} bxc6 {[%emt 0:00:02]} 14. Ba3 {[%emt 0:02:02]} Nc4 {[%emt 0:00:30]} 15. Bc5 {[%emt 0:00:35]} Qa5 {[%emt 0:00:30]} 16. Qc1 {[%emt 0:01:18]} Re8 {[%emt 0:01:36]} 17. e4 {[%emt 0:19:01]} e5 {[%emt 0:00:41]} 18. Rd1 {[%emt 0:14:52]} Bg4 {[%emt 0:09:05]} 19. Rd3 {[%emt 0:01:20]} exd4 {[%emt 0:00:08]} 20. Bxd4 {[%emt 0:00:04]} Bxd4 {[%emt 0:00:03]} 21. Rxd4 Qc5 {[%emt 0:00:02]} 22. Rd3 {[%emt 0:02:07]} d4 {[%emt 0:00:42]} 23. h3 {[%emt 0:00:31]} Ne5 {[%emt 0:00:42]} 24. Rd2 {[%emt 0:06:02]} dxc3 {[%emt 0:03:07]} 25. hxg4 {[%emt 0:00:40]} Rxa4 {[%emt 0:00:27]} 26. Rc2 {[%emt 0:01:54]} Nd3 {[%emt 0:03:13]} 27. Qe3 {[%emt 0:12:37]} Qxe3 {[%emt 0:01:54]} 28. fxe3 {[%emt 0:00:07]} Ra3 {[%emt 0:00:01]} 29. Rb1 {[%emt 0:00:13]} Nb2 {[%emt 0:00:53]} 30. Rbc1 {[%emt 0:01:20]} Na4 {[%emt 0:00:28]} 31. e5 {[%emt 0:02:46]} Rxe5 {[%emt 0:01:00]} 32. Bxc6 {[%emt 0:00:04]} Rxe3 {[%emt 0:00:14]} 33. Kf2 {[%emt 0:02:16]} Rd3 {[%emt 0:00:05]} 34. Bxa4 {[%emt 0:02:24]} Rxa4 {[%emt 0:00:05]} 35. Rxc3 {[%emt 0:00:02]} Rxc3 {[%emt 0:00:21]} 36. Rxc3 {[%emt 0:00:04]} Rxg4 {[%emt 0:00:05]} 37. Ra3 {[%emt 0:00:16]} Kg7 {[%emt 0:00:06]} 38. Ra7 {[%emt 0:00:52]} h5 {[%emt 0:00:06]} 39. Kf3 {[%emt 0:00:07]} Rc4 {[%emt 0:00:05]} 40. a4 {[%emt 0:00:00]} Kf6 {[%emt 0:00:00]} 41. Ra6+ {[%emt 0:02:05]} Kg5 {[%emt 0:00:14]} 42. Ra5+ {[%emt 0:00:08]} f5 {[%emt 0:01:08]} 43. Ra6 {[%emt 0:02:37]} h4 {[%emt 0:00:22]} 44. gxh4+ {[%emt 0:00:05]} Rxh4 {[%emt 0:00:04]} 45. Kg3 {[%emt 0:00:21]} Rb4 {[%emt 0:00:05]} 46. a5 {[%emt 0:00:21]} Rb3+ {[%emt 0:00:04]} 47. Kg2 {[%emt 0:00:24]} Ra3 {[%emt 0:00:03]} 48. Ra8 {[%emt 0:00:26]} Kg4 {[%emt 0:00:07]} 49. a6 {[%emt 0:00:09]} Ra2+ {[%emt 0:00:05]} 50. Kf1 {[%emt 0:00:10]} g5 {[%emt 0:00:05]} 0-1